[Event "Titled Tuesday Blitz February 22 Early 2022"]
[White "Mayaud, Raphael"]
[Black "Nenezic, Marko"]
[WhiteFideId "627151"]
[BlackFideId "912123"]
[WhiteElo "2191"]
[BlackElo "2484"]
[Result "0-1"]
[Round "02"]
[TimeControl "180+1"]
[Date "2022.02.22"]
[WhiteClock "0:00:06"]
[BlackClock "0:00:12"]

1. d4 {[%clk 0:03:00]}  Nf6 {[%clk 0:02:59]} 2. Bg5 {[%clk 0:03:00]}  c5 {[%clk 0:02:59]} 3. d5 {[%clk 0:03:00]}  Ne4 {[%clk 0:02:58]} 4. Bf4 {[%clk 0:02:59]}  e6 {[%clk 0:02:58]} 5. f3 {[%clk 0:02:54]}  Nd6 {[%clk 0:02:55]} 6. dxe6 {[%clk 0:02:51]}  dxe6 {[%clk 0:02:54]} 7. e4 {[%clk 0:02:51]}  Nc6 {[%clk 0:02:41]} 8. e5 {[%clk 0:02:39]}  Nf5 {[%clk 0:02:40]} 9. Qxd8+ {[%clk 0:02:38]}  Nxd8 {[%clk 0:02:39]} 10. Nc3 {[%clk 0:02:37]}  Nd4 {[%clk 0:02:10]} 11. O-O-O {[%clk 0:02:28]}  Bd7 {[%clk 0:02:07]} 12. Nge2 {[%clk 0:02:26]}  N8c6 {[%clk 0:02:06]} 13. Ne4 {[%clk 0:02:06]}  O-O-O {[%clk 0:01:53]} 14. c3 {[%clk 0:02:06]}  Nf5 {[%clk 0:01:37]} 15. N2g3 {[%clk 0:00:57]}  Nxg3 {[%clk 0:01:30]} 16. hxg3 {[%clk 0:00:56]}  Be7 {[%clk 0:01:27]} 17. Nd6+ {[%clk 0:00:56]}  Bxd6 {[%clk 0:01:26]} 18. Rxd6 {[%clk 0:00:56]}  h6 {[%clk 0:01:19]} 19. g4 {[%clk 0:00:36]}  Ne7 {[%clk 0:01:18]} 20. Bc4 {[%clk 0:00:29]}  Bc6 {[%clk 0:01:17]} 21. Rhd1 {[%clk 0:00:28]}  Bd5 {[%clk 0:01:16]} 22. Bxd5 {[%clk 0:00:27]}  Nxd5 {[%clk 0:01:16]} 23. Rxd8+ {[%clk 0:00:26]}  Rxd8 {[%clk 0:01:15]} 24. Bd2 {[%clk 0:00:24]}  c4 {[%clk 0:01:08]} 25. Kc2 {[%clk 0:00:22]}  b5 {[%clk 0:01:04]} 26. b3 {[%clk 0:00:23]}  Kc7 {[%clk 0:01:00]} 27. bxc4 {[%clk 0:00:23]}  bxc4 {[%clk 0:01:01]} 28. Rb1 {[%clk 0:00:23]}  Kc6 {[%clk 0:01:01]} 29. a4 {[%clk 0:00:20]}  Rh8 {[%clk 0:00:56]} 30. a5 {[%clk 0:00:19]}  a6 {[%clk 0:00:44]} 31. f4 {[%clk 0:00:18]}  h5 {[%clk 0:00:43]} 32. g5 {[%clk 0:00:18]}  g6 {[%clk 0:00:43]} 33. Re1 {[%clk 0:00:17]}  h4 {[%clk 0:00:42]} 34. Re4 {[%clk 0:00:16]}  Kb5 {[%clk 0:00:41]} 35. Re1 {[%clk 0:00:15]}  h3 {[%clk 0:00:42]} 36. Rb1+ {[%clk 0:00:15]}  Kc6 {[%clk 0:00:37]} 37. gxh3 {[%clk 0:00:15]}  Rxh3 {[%clk 0:00:35]} 38. Rb8 {[%clk 0:00:16]}  Rh2 {[%clk 0:00:34]} 39. Kc1 {[%clk 0:00:16]}  Rf2 {[%clk 0:00:15]} 40. Rf8 {[%clk 0:00:15]}  Nxf4 {[%clk 0:00:14]} 41. Ra8 {[%clk 0:00:14]}  Kb5 {[%clk 0:00:14]} 42. Rb8+ {[%clk 0:00:14]}  Kxa5 {[%clk 0:00:15]} 43. Bxf4 {[%clk 0:00:14]}  Rxf4 {[%clk 0:00:15]} 44. Rb4 {[%clk 0:00:14]}  Rf5 {[%clk 0:00:14]} 45. Rxc4 {[%clk 0:00:13]}  Kb5 {[%clk 0:00:14]} 46. Rc7 {[%clk 0:00:13]}  Kb6 {[%clk 0:00:14]} 47. Re7 {[%clk 0:00:12]}  Rxg5 {[%clk 0:00:13]} 48. Rxf7 {[%clk 0:00:11]}  Rxe5 {[%clk 0:00:14]} 49. Rf6 {[%clk 0:00:11]}  g5 {[%clk 0:00:14]} 50. Rg6 {[%clk 0:00:11]}  Kc5 {[%clk 0:00:14]} 51. Kc2 {[%clk 0:00:12]}  Kc4 {[%clk 0:00:14]} 52. Rg8 {[%clk 0:00:12]}  Re2+ {[%clk 0:00:14]} 53. Kd1 {[%clk 0:00:12]}  Rg2 {[%clk 0:00:14]} 54. Rg6 {[%clk 0:00:12]}  e5 {[%clk 0:00:10]} 55. Rxa6 {[%clk 0:00:12]}  Kxc3 {[%clk 0:00:11]} 56. Ke1 {[%clk 0:00:12]}  Kd4 {[%clk 0:00:10]} 57. Ra4+ {[%clk 0:00:12]}  Ke3 {[%clk 0:00:10]} 58. Ra3+ {[%clk 0:00:12]}  Kf4 {[%clk 0:00:10]} 59. Kf1 {[%clk 0:00:13]}  Rb2 {[%clk 0:00:10]} 60. Ra8 {[%clk 0:00:13]}  e4 {[%clk 0:00:10]} 61. Rf8+ {[%clk 0:00:12]}  Ke3 {[%clk 0:00:11]} 62. Rf5 {[%clk 0:00:11]}  Rb1+ {[%clk 0:00:10]} 63. Kg2 {[%clk 0:00:11]}  Kd2 {[%clk 0:00:11]} 64. Rxg5 {[%clk 0:00:11]}  Rb7 {[%clk 0:00:08]} 65. Rd5+ {[%clk 0:00:10]}  Ke2 {[%clk 0:00:08]} 66. Kg3 {[%clk 0:00:10]}  Rg7+ {[%clk 0:00:07]} 67. Kf4 {[%clk 0:00:10]}  e3 {[%clk 0:00:08]} 68. Re5 {[%clk 0:00:10]}  Rf7+ {[%clk 0:00:08]} 69. Ke4 {[%clk 0:00:09]}  Kf2 {[%clk 0:00:09]} 70. Kd3 {[%clk 0:00:09]}  Rd7+ {[%clk 0:00:09]} 71. Kc2 {[%clk 0:00:09]}  e2 {[%clk 0:00:10]} 72. Rf5+ {[%clk 0:00:09]}  Ke1 {[%clk 0:00:11]} 73. Rf6 {[%clk 0:00:09]}  Rd4 {[%clk 0:00:11]} 74. Rf5 {[%clk 0:00:09]}  Rc4+ {[%clk 0:00:10]} 75. Kd3 {[%clk 0:00:08]}  Rc7 {[%clk 0:00:10]} 76. Ke3 {[%clk 0:00:08]}  Kd1 {[%clk 0:00:10]} 77. Rd5+ {[%clk 0:00:08]}  Ke1 {[%clk 0:00:10]} 78. Rh5 {[%clk 0:00:08]}  Re7+ {[%clk 0:00:09]} 79. Kf3 {[%clk 0:00:08]}  Rf7+ {[%clk 0:00:10]} 80. Ke3 {[%clk 0:00:07]}  Re7+ {[%clk 0:00:10]} 81. Kf3 {[%clk 0:00:07]}  Kd1 {[%clk 0:00:11]} 82. Rd5+ {[%clk 0:00:06]}  Kc2 {[%clk 0:00:11]} 83. Rc5+ {[%clk 0:00:06]}  Kb3 {[%clk 0:00:12]} 84. Rb5+ {[%clk 0:00:06]}  Kc4 {[%clk 0:00:12]} 0-1


[Site "https://www.chess.com"]

[Event "Titled Tuesday Blitz February 22 Early 2022"]
[White "Maze, Sebastien"]
[Black "Makhnev, Denis"]
[WhiteFideId "613762"]
[BlackFideId "13707647"]
[WhiteElo "2462"]
[BlackElo "2491"]
[Result "1/2-1/2"]
[Round "02"]
[TimeControl "180+1"]
[Date "2022.02.22"]
[WhiteClock "0:00:09"]
[BlackClock "0:00:16"]

1. e4 {[%clk 0:02:58]}  c6 {[%clk 0:03:00]} 2. Nf3 {[%clk 0:02:54]}  d5 {[%clk 0:03:01]} 3. Nc3 {[%clk 0:02:54]}  dxe4 {[%clk 0:03:01]} 4. Nxe4 {[%clk 0:02:54]}  Nf6 {[%clk 0:03:02]} 5. Qe2 {[%clk 0:02:54]}  Nxe4 {[%clk 0:03:02]} 6. Qxe4 {[%clk 0:02:54]}  Qd5 {[%clk 0:03:03]} 7. Qe3 {[%clk 0:02:50]}  g6 {[%clk 0:02:44]} 8. Qc3 {[%clk 0:02:41]}  Qe6+ {[%clk 0:02:36]} 9. Be2 {[%clk 0:02:35]}  Qf6 {[%clk 0:02:36]} 10. Qxf6 {[%clk 0:02:30]}  exf6 {[%clk 0:02:36]} 11. d4 {[%clk 0:02:29]}  Be6 {[%clk 0:02:32]} 12. c4 {[%clk 0:02:19]}  Nd7 {[%clk 0:02:33]} 13. Bd2 {[%clk 0:02:18]}  Nb6 {[%clk 0:02:20]} 14. b3 {[%clk 0:02:17]}  a5 {[%clk 0:02:20]} 15. a4 {[%clk 0:02:17]}  h5 {[%clk 0:01:59]} 16. h4 {[%clk 0:02:10]}  Bg4 {[%clk 0:01:15]} 17. Bc3 {[%clk 0:01:59]}  Bb4 {[%clk 0:01:14]} 18. Bxb4 {[%clk 0:01:51]}  axb4 {[%clk 0:01:15]} 19. O-O-O {[%clk 0:01:42]}  O-O-O {[%clk 0:01:07]} 20. Rhe1 {[%clk 0:01:17]}  Rhe8 {[%clk 0:01:06]} 21. Ng1 {[%clk 0:01:14]}  Kc7 {[%clk 0:01:03]} 22. Bxg4 {[%clk 0:01:07]}  hxg4 {[%clk 0:01:04]} 23. Rxe8 {[%clk 0:01:06]}  Rxe8 {[%clk 0:01:04]} 24. Kd2 {[%clk 0:01:06]}  Re4 {[%clk 0:00:50]} 25. Ne2 {[%clk 0:01:05]}  f5 {[%clk 0:00:48]} 26. g3 {[%clk 0:01:03]}  Nd7 {[%clk 0:00:43]} 27. Kd3 {[%clk 0:00:36]}  c5 {[%clk 0:00:43]} 28. d5 {[%clk 0:00:18]}  Ne5+ {[%clk 0:00:43]} 29. Kd2 {[%clk 0:00:19]}  Nf3+ {[%clk 0:00:43]} 30. Kd3 {[%clk 0:00:19]}  Kd6 {[%clk 0:00:43]} 31. Rh1 {[%clk 0:00:18]}  Re8 {[%clk 0:00:34]} 32. h5 {[%clk 0:00:18]}  Rh8 {[%clk 0:00:35]} 33. h6 {[%clk 0:00:18]}  g5 {[%clk 0:00:31]} 34. Rh5 {[%clk 0:00:16]}  Ke5 {[%clk 0:00:23]} 35. Rh1 {[%clk 0:00:15]}  Kf6 {[%clk 0:00:23]} 36. Kc2 {[%clk 0:00:13]}  Kg6 {[%clk 0:00:22]} 37. Nc1 {[%clk 0:00:13]}  Rxh6 {[%clk 0:00:12]} 38. Rxh6+ {[%clk 0:00:12]}  Kxh6 {[%clk 0:00:13]} 39. Nd3 {[%clk 0:00:12]}  b6 {[%clk 0:00:13]} 40. a5 {[%clk 0:00:12]}  bxa5 {[%clk 0:00:13]} 41. Nxc5 {[%clk 0:00:12]}  Kg6 {[%clk 0:00:14]} 42. Nb7 {[%clk 0:00:12]}  f4 {[%clk 0:00:14]} 43. d6 {[%clk 0:00:09]}  Kf6 {[%clk 0:00:13]} 44. d7 {[%clk 0:00:09]}  Nd4+ {[%clk 0:00:11]} 45. Kd3 {[%clk 0:00:09]}  Nc6 {[%clk 0:00:12]} 46. Nxa5 {[%clk 0:00:08]}  Ne5+ {[%clk 0:00:12]} 47. Ke4 {[%clk 0:00:08]}  Nxd7 {[%clk 0:00:13]} 48. gxf4 {[%clk 0:00:08]}  Nc5+ {[%clk 0:00:12]} 49. Ke3 {[%clk 0:00:07]}  Kf5 {[%clk 0:00:11]} 50. fxg5 {[%clk 0:00:07]}  Kxg5 {[%clk 0:00:12]} 51. Nc6 {[%clk 0:00:07]}  f5 {[%clk 0:00:12]} 52. Nxb4 {[%clk 0:00:07]}  f4+ {[%clk 0:00:13]} 53. Ke2 {[%clk 0:00:07]}  Nxb3 {[%clk 0:00:13]} 54. Nd3 {[%clk 0:00:07]}  Kf5 {[%clk 0:00:11]} 55. c5 {[%clk 0:00:08]}  Nd4+ {[%clk 0:00:11]} 56. Kd2 {[%clk 0:00:08]}  Ke4 {[%clk 0:00:12]} 57. Kc3 {[%clk 0:00:06]}  Ne6 {[%clk 0:00:11]} 58. Kc4 {[%clk 0:00:06]}  f3 {[%clk 0:00:11]} 59. Kc3 {[%clk 0:00:06]}  Kd5 {[%clk 0:00:10]} 60. Kd2 {[%clk 0:00:06]}  Kd4 {[%clk 0:00:10]} 61. c6 {[%clk 0:00:05]}  Kd5 {[%clk 0:00:09]} 62. Ke3 {[%clk 0:00:05]}  Kxc6 {[%clk 0:00:09]} 63. Ne5+ {[%clk 0:00:05]}  Kd5 {[%clk 0:00:10]} 64. Nxg4 {[%clk 0:00:06]}  Ng5 {[%clk 0:00:11]} 65. Nh2 {[%clk 0:00:06]}  Ke6 {[%clk 0:00:11]} 66. Nxf3 {[%clk 0:00:07]}  Nf7 {[%clk 0:00:12]} 67. Nd4+ {[%clk 0:00:07]}  Kf6 {[%clk 0:00:13]} 68. f4 {[%clk 0:00:08]}  Nh6 {[%clk 0:00:14]} 69. Ke4 {[%clk 0:00:08]}  Nf7 {[%clk 0:00:14]} 70. Nf3 {[%clk 0:00:08]}  Nd6+ {[%clk 0:00:14]} 71. Kd5 {[%clk 0:00:08]}  Nf5 {[%clk 0:00:15]} 72. Ne5 {[%clk 0:00:09]}  Ne3+ {[%clk 0:00:15]} 73. Ke4 {[%clk 0:00:09]}  Ng2 {[%clk 0:00:16]} 74. Kd5 {[%clk 0:00:09]}  Nxf4+ {[%clk 0:00:16]} 1/2-1/2


[Site "https://www.chess.com"]

[Event "Titled Tuesday Blitz February 22 Early 2022"]
[White "Mejia, Cherry Ann"]
[Black "Kiolbasa, Oliwia"]
[WhiteFideId "5206880"]
[BlackFideId "1154613"]
[WhiteElo "2007"]
[BlackElo "2190"]
[Result "0-1"]
[Round "02"]
[TimeControl "180+1"]
[Date "2022.02.22"]
[WhiteClock "0:00:11"]
[BlackClock "0:00:18"]

1. e4 {[%clk 0:03:00]}  e5 {[%clk 0:02:53]} 2. Nf3 {[%clk 0:03:00]}  Nc6 {[%clk 0:02:53]} 3. Bb5 {[%clk 0:03:00]}  a6 {[%clk 0:02:53]} 4. Ba4 {[%clk 0:03:00]}  Nf6 {[%clk 0:02:52]} 5. Qe2 {[%clk 0:03:00]}  b5 {[%clk 0:02:49]} 6. Bb3 {[%clk 0:03:00]}  Bc5 {[%clk 0:02:41]} 7. c3 {[%clk 0:02:59]}  O-O {[%clk 0:02:39]} 8. O-O {[%clk 0:03:00]}  d6 {[%clk 0:02:35]} 9. Rd1 {[%clk 0:03:00]}  Bg4 {[%clk 0:02:33]} 10. d3 {[%clk 0:02:59]}  Re8 {[%clk 0:02:29]} 11. Bg5 {[%clk 0:02:59]}  h6 {[%clk 0:02:28]} 12. Bxf6 {[%clk 0:02:54]}  Qxf6 {[%clk 0:02:26]} 13. Bd5 {[%clk 0:02:55]}  Bd7 {[%clk 0:02:15]} 14. Nbd2 {[%clk 0:02:45]}  Rad8 {[%clk 0:02:14]} 15. Nf1 {[%clk 0:02:45]}  Ne7 {[%clk 0:02:13]} 16. Bb3 {[%clk 0:02:33]}  Ng6 {[%clk 0:02:12]} 17. d4 {[%clk 0:02:22]}  Bb6 {[%clk 0:02:02]} 18. dxe5 {[%clk 0:02:19]}  dxe5 {[%clk 0:01:55]} 19. Ne3 {[%clk 0:02:12]}  Nf4 {[%clk 0:01:50]} 20. Qe1 {[%clk 0:02:10]}  Qg6 {[%clk 0:01:45]} 21. Nh4 {[%clk 0:01:55]}  Qxe4 {[%clk 0:01:37]} 22. Bc2 {[%clk 0:01:07]}  Qc6 {[%clk 0:01:35]} 23. Nd5 {[%clk 0:00:16]}  Nxd5 {[%clk 0:01:08]} 24. Be4 {[%clk 0:00:13]}  Be6 {[%clk 0:01:05]} 25. Nf3 {[%clk 0:00:11]}  Qc5 {[%clk 0:01:04]} 26. Nxe5 {[%clk 0:00:09]}  Nf4 {[%clk 0:01:03]} 27. Rxd8 {[%clk 0:00:08]}  Rxd8 {[%clk 0:01:02]} 28. Nf3 {[%clk 0:00:06]}  Qh5 {[%clk 0:00:36]} 29. Rd1 {[%clk 0:00:04]}  Rxd1 {[%clk 0:00:23]} 30. Qxd1 {[%clk 0:00:05]}  Bd5 {[%clk 0:00:24]} 31. Bxd5 {[%clk 0:00:04]}  Qxd5 {[%clk 0:00:23]} 32. Qxd5 {[%clk 0:00:05]}  Nxd5 {[%clk 0:00:23]} 33. Kf1 {[%clk 0:00:05]}  Kf8 {[%clk 0:00:23]} 34. g3 {[%clk 0:00:04]}  Ke7 {[%clk 0:00:23]} 35. Ke2 {[%clk 0:00:05]}  Kd6 {[%clk 0:00:24]} 36. Kd3 {[%clk 0:00:05]}  Nf6 {[%clk 0:00:25]} 37. Nd2 {[%clk 0:00:05]}  Bxf2 {[%clk 0:00:23]} 38. c4 {[%clk 0:00:05]}  c6 {[%clk 0:00:22]} 39. cxb5 {[%clk 0:00:05]}  axb5 {[%clk 0:00:23]} 40. b3 {[%clk 0:00:05]}  Be1 {[%clk 0:00:22]} 41. Nf3 {[%clk 0:00:05]}  Bb4 {[%clk 0:00:20]} 42. Nh4 {[%clk 0:00:05]}  g6 {[%clk 0:00:20]} 43. Ng2 {[%clk 0:00:05]}  Nd5 {[%clk 0:00:20]} 44. a4 {[%clk 0:00:02]}  bxa4 {[%clk 0:00:19]} 45. bxa4 {[%clk 0:00:03]}  c5 {[%clk 0:00:19]} 46. Kc4 {[%clk 0:00:04]}  Kc6 {[%clk 0:00:17]} 47. Nf4 {[%clk 0:00:02]}  Nxf4 {[%clk 0:00:16]} 48. gxf4 {[%clk 0:00:03]}  f6 {[%clk 0:00:16]} 49. h4 {[%clk 0:00:03]}  g5 {[%clk 0:00:14]} 50. a5 {[%clk 0:00:04]}  Bxa5 {[%clk 0:00:14]} 51. fxg5 {[%clk 0:00:03]}  fxg5 {[%clk 0:00:13]} 52. hxg5 {[%clk 0:00:04]}  hxg5 {[%clk 0:00:14]} 53. Kd3 {[%clk 0:00:04]}  g4 {[%clk 0:00:15]} 54. Ke2 {[%clk 0:00:05]}  c4 {[%clk 0:00:15]} 55. Kf2 {[%clk 0:00:05]}  c3 {[%clk 0:00:16]} 56. Kg3 {[%clk 0:00:06]}  c2 {[%clk 0:00:16]} 57. Kxg4 {[%clk 0:00:07]}  c1=Q {[%clk 0:00:17]} 58. Kf5 {[%clk 0:00:08]}  Qe3 {[%clk 0:00:17]} 59. Kf6 {[%clk 0:00:08]}  Kd6 {[%clk 0:00:17]} 60. Kg7 {[%clk 0:00:09]}  Qf4 {[%clk 0:00:18]} 61. Kg8 {[%clk 0:00:10]}  Ke6 {[%clk 0:00:18]} 62. Kh7 {[%clk 0:00:10]}  Qg5 {[%clk 0:00:18]} 63. Kh8 {[%clk 0:00:10]}  Bc3+ {[%clk 0:00:18]} 64. Kh7 {[%clk 0:00:11]}  Qg7# {[%clk 0:00:18]} 0-1


[Site "https://www.chess.com"]

[Event "Titled Tuesday Blitz February 22 Early 2022"]
[White "Mekhitarian, Krikor Sevag"]
[Black "Poormosavi, Seyed Kian"]
[WhiteFideId "2107660"]
[BlackFideId "12585807"]
[WhiteElo "2598"]
[BlackElo "2116"]
[Result "0-1"]
[Round "02"]
[TimeControl "180+1"]
[Date "2022.02.22"]
[WhiteClock "0:01:25"]
[BlackClock "0:02:19"]

1. e4 {[%clk 0:03:00]}  c6 {[%clk 0:02:57]} 2. Nf3 {[%clk 0:02:59]}  d5 {[%clk 0:02:57]} 3. Nc3 {[%clk 0:03:00]}  dxe4 {[%clk 0:02:57]} 4. Nxe4 {[%clk 0:03:01]}  Nf6 {[%clk 0:02:57]} 5. Qe2 {[%clk 0:03:00]}  Nxe4 {[%clk 0:02:57]} 6. Qxe4 {[%clk 0:03:01]}  Qd5 {[%clk 0:02:57]} 7. Qf4 {[%clk 0:02:59]}  Qf5 {[%clk 0:02:57]} 8. Qe3 {[%clk 0:02:53]}  Qe6 {[%clk 0:02:57]} 9. d4 {[%clk 0:02:50]}  Qxe3+ {[%clk 0:02:57]} 10. fxe3 {[%clk 0:02:51]}  g6 {[%clk 0:02:55]} 11. Bd3 {[%clk 0:02:51]}  Bg7 {[%clk 0:02:56]} 12. e4 {[%clk 0:02:51]}  Nd7 {[%clk 0:02:55]} 13. c3 {[%clk 0:02:52]}  O-O {[%clk 0:02:55]} 14. Be3 {[%clk 0:02:37]}  e5 {[%clk 0:02:55]} 15. O-O-O {[%clk 0:02:28]}  Re8 {[%clk 0:02:54]} 16. d5 {[%clk 0:02:25]}  cxd5 {[%clk 0:02:53]} 17. exd5 {[%clk 0:02:26]}  e4 {[%clk 0:02:49]} 18. Bxe4 {[%clk 0:02:08]}  Rxe4 {[%clk 0:02:50]} 19. Bd4 {[%clk 0:02:09]}  Bxd4 {[%clk 0:02:35]} 20. Nxd4 {[%clk 0:02:07]}  Nf6 {[%clk 0:02:31]} 21. Nb5 {[%clk 0:02:07]}  Bd7 {[%clk 0:02:30]} 22. Nd6 {[%clk 0:02:07]}  Re2 {[%clk 0:02:30]} 23. Nxb7 {[%clk 0:01:54]}  Rb8 {[%clk 0:02:26]} 24. Rdf1 {[%clk 0:01:25]}  Rxb7 {[%clk 0:02:19]} 0-1


[Site "https://www.chess.com"]

[Event "Titled Tuesday Blitz February 22 Early 2022"]
[White "Mikhailovsky, Vladimir"]
[Black "Zavivaeva, Emilia"]
[WhiteFideId "34105414"]
[BlackFideId "34127531"]
[WhiteElo "2371"]
[BlackElo "1685"]
[Result "1-0"]
[Round "02"]
[TimeControl "180+1"]
[Date "2022.02.22"]
[WhiteClock "0:00:54"]
[BlackClock "0:00:01"]

1. d4 {[%clk 0:02:54]}  d5 {[%clk 0:02:58]} 2. Bf4 {[%clk 0:02:54]}  e6 {[%clk 0:02:57]} 3. Nc3 {[%clk 0:02:54]}  Nf6 {[%clk 0:02:57]} 4. Nb5 {[%clk 0:02:53]}  Na6 {[%clk 0:02:55]} 5. e3 {[%clk 0:02:51]}  Be7 {[%clk 0:02:52]} 6. Nf3 {[%clk 0:02:49]}  O-O {[%clk 0:02:51]} 7. Nc3 {[%clk 0:02:46]}  c5 {[%clk 0:02:51]} 8. Be2 {[%clk 0:02:32]}  b6 {[%clk 0:02:49]} 9. O-O {[%clk 0:02:31]}  Bb7 {[%clk 0:02:47]} 10. Nb5 {[%clk 0:02:31]}  Rc8 {[%clk 0:02:45]} 11. Nxa7 {[%clk 0:02:28]}  Ra8 {[%clk 0:02:42]} 12. Nb5 {[%clk 0:02:28]}  Ne4 {[%clk 0:02:36]} 13. a4 {[%clk 0:02:26]}  Bc6 {[%clk 0:02:29]} 14. Ne5 {[%clk 0:02:21]}  Bb7 {[%clk 0:02:24]} 15. c3 {[%clk 0:02:17]}  Nd6 {[%clk 0:02:23]} 16. Qc2 {[%clk 0:02:08]}  Nc7 {[%clk 0:02:09]} 17. Nxc7 {[%clk 0:02:00]}  Qxc7 {[%clk 0:02:08]} 18. Bd3 {[%clk 0:02:00]}  f5 {[%clk 0:01:52]} 19. f3 {[%clk 0:01:45]}  Qd8 {[%clk 0:00:35]} 20. Bg3 {[%clk 0:01:32]}  Bf6 {[%clk 0:00:31]} 21. dxc5 {[%clk 0:01:20]}  bxc5 {[%clk 0:00:29]} 22. b4 {[%clk 0:01:21]}  Rc8 {[%clk 0:00:22]} 23. Qd2 {[%clk 0:01:15]}  Re8 {[%clk 0:00:08]} 24. a5 {[%clk 0:01:14]}  Nc4 {[%clk 0:00:06]} 25. Bxc4 {[%clk 0:01:11]}  dxc4 {[%clk 0:00:05]} 26. Qxd8 {[%clk 0:01:02]}  Rexd8 {[%clk 0:00:04]} 27. b5 {[%clk 0:01:02]}  Ra8 {[%clk 0:00:01]} 28. a6 {[%clk 0:01:01]}  Bc8 {[%clk 0:00:01]} 29. Rfd1 {[%clk 0:00:56]}  Rxd1+ {[%clk 0:00:01]} 30. Rxd1 {[%clk 0:00:57]}  Kf8 {[%clk 0:00:01]} 31. Nd7+ {[%clk 0:00:54]} 1-0


[Site "https://www.chess.com"]

[Event "Titled Tuesday Blitz February 22 Early 2022"]
[White "Mikhalsky, Vladimir"]
[Black "Hess, Robert"]
[WhiteFideId "14144352"]
[BlackFideId "2022036"]
[WhiteElo "2248"]
[BlackElo "2557"]
[Result "1-0"]
[Round "02"]
[TimeControl "180+1"]
[Date "2022.02.22"]
[WhiteClock "0:00:11"]
[BlackClock "0:00:06"]

1. c4 {[%clk 0:02:59]}  g6 {[%clk 0:03:00]} 2. d4 {[%clk 0:02:58]}  Bg7 {[%clk 0:03:01]} 3. e4 {[%clk 0:02:58]}  d6 {[%clk 0:03:01]} 4. Nc3 {[%clk 0:02:57]}  e6 {[%clk 0:02:59]} 5. Be3 {[%clk 0:02:55]}  Ne7 {[%clk 0:02:59]} 6. h4 {[%clk 0:02:54]}  h6 {[%clk 0:02:59]} 7. h5 {[%clk 0:02:53]}  g5 {[%clk 0:02:59]} 8. f4 {[%clk 0:02:50]}  gxf4 {[%clk 0:03:00]} 9. Bxf4 {[%clk 0:02:49]}  Nbc6 {[%clk 0:02:58]} 10. Nf3 {[%clk 0:02:48]}  Ng8 {[%clk 0:02:33]} 11. Be3 {[%clk 0:02:30]}  Nf6 {[%clk 0:02:31]} 12. Qd2 {[%clk 0:02:29]}  Ng4 {[%clk 0:02:31]} 13. Bg1 {[%clk 0:02:29]}  Rg8 {[%clk 0:02:28]} 14. O-O-O {[%clk 0:02:25]}  Bd7 {[%clk 0:02:27]} 15. e5 {[%clk 0:02:14]}  dxe5 {[%clk 0:02:12]} 16. d5 {[%clk 0:02:13]}  Nd4 {[%clk 0:01:58]} 17. Nxd4 {[%clk 0:02:07]}  exd4 {[%clk 0:01:59]} 18. Bxd4 {[%clk 0:02:06]}  Bxd4 {[%clk 0:01:12]} 19. Qxd4 {[%clk 0:02:06]}  Qg5+ {[%clk 0:01:13]} 20. Kb1 {[%clk 0:02:05]}  e5 {[%clk 0:01:11]} 21. Qc5 {[%clk 0:01:47]}  Qe7 {[%clk 0:01:07]} 22. Qg1 {[%clk 0:01:16]}  b6 {[%clk 0:00:31]} 23. d6 {[%clk 0:01:11]}  cxd6 {[%clk 0:00:31]} 24. Nd5 {[%clk 0:00:47]}  Qd8 {[%clk 0:00:31]} 25. Bd3 {[%clk 0:00:36]}  Be6 {[%clk 0:00:26]} 26. Be4 {[%clk 0:00:33]}  Rc8 {[%clk 0:00:25]} 27. Qf1 {[%clk 0:00:23]}  Qg5 {[%clk 0:00:15]} 28. Qf3 {[%clk 0:00:20]}  f5 {[%clk 0:00:13]} 29. Bc2 {[%clk 0:00:19]}  e4 {[%clk 0:00:12]} 30. Qa3 {[%clk 0:00:18]}  Bxd5 {[%clk 0:00:12]} 31. Rxd5 {[%clk 0:00:16]}  Ne3 {[%clk 0:00:12]} 32. Qxd6 {[%clk 0:00:16]}  Nxd5 {[%clk 0:00:10]} 33. Qxd5 {[%clk 0:00:16]}  Rd8 {[%clk 0:00:08]} 34. Qe6+ {[%clk 0:00:15]}  Kf8 {[%clk 0:00:07]} 35. Rf1 {[%clk 0:00:15]}  f4 {[%clk 0:00:06]} 36. Qxe4 {[%clk 0:00:14]}  Kg7 {[%clk 0:00:06]} 37. Rxf4 {[%clk 0:00:13]}  Rge8 {[%clk 0:00:06]} 38. Qh7# {[%clk 0:00:11]} 1-0


[Site "https://www.chess.com"]

[Event "Titled Tuesday Blitz February 22 Early 2022"]
[White "Mikhnenko, Alexander"]
[Black "Gelman, Alexander"]
[WhiteFideId "34143014"]
[BlackFideId "4118316"]
[WhiteElo "2140"]
[BlackElo "2375"]
[Result "1-0"]
[Round "02"]
[TimeControl "180+1"]
[Date "2022.02.22"]
[WhiteClock "0:00:22"]
[BlackClock "0:01:48"]

1. e4 {[%clk 0:03:00]}  c5 {[%clk 0:02:56]} 2. Nf3 {[%clk 0:03:00]}  e6 {[%clk 0:02:56]} 3. Qe2 {[%clk 0:02:56]}  Nc6 {[%clk 0:02:56]} 4. g3 {[%clk 0:02:54]}  d6 {[%clk 0:02:56]} 5. d3 {[%clk 0:02:50]}  Nf6 {[%clk 0:02:57]} 6. Bg2 {[%clk 0:02:51]}  Be7 {[%clk 0:02:57]} 7. O-O {[%clk 0:02:47]}  O-O {[%clk 0:02:56]} 8. c3 {[%clk 0:02:41]}  Qc7 {[%clk 0:02:54]} 9. Bg5 {[%clk 0:01:40]}  h6 {[%clk 0:02:53]} 10. Bxf6 {[%clk 0:01:40]}  Bxf6 {[%clk 0:02:53]} 11. Nbd2 {[%clk 0:01:41]}  b5 {[%clk 0:02:50]} 12. Rad1 {[%clk 0:01:41]}  b4 {[%clk 0:02:50]} 13. Nb1 {[%clk 0:01:31]}  a5 {[%clk 0:02:49]} 14. d4 {[%clk 0:01:29]}  Ba6 {[%clk 0:02:49]} 15. c4 {[%clk 0:01:23]}  Nxd4 {[%clk 0:02:41]} 16. Nxd4 {[%clk 0:01:21]}  Bxd4 {[%clk 0:02:42]} 17. b3 {[%clk 0:01:21]}  Bb7 {[%clk 0:02:41]} 18. Kh1 {[%clk 0:01:13]}  a4 {[%clk 0:02:41]} 19. Nd2 {[%clk 0:01:01]}  axb3 {[%clk 0:02:40]} 20. Nxb3 {[%clk 0:01:02]}  Bc3 {[%clk 0:02:34]} 21. f4 {[%clk 0:00:59]}  Ra6 {[%clk 0:02:17]} 22. f5 {[%clk 0:00:57]}  Qe7 {[%clk 0:02:09]} 23. Qg4 {[%clk 0:00:52]}  Kh8 {[%clk 0:02:05]} 24. fxe6 {[%clk 0:00:47]}  fxe6 {[%clk 0:02:04]} 25. Rxf8+ {[%clk 0:00:47]}  Qxf8 {[%clk 0:02:04]} 26. Qxe6 {[%clk 0:00:48]}  Rxa2 {[%clk 0:02:01]} 27. Qxd6 {[%clk 0:00:33]}  Qf2 {[%clk 0:01:55]} 28. Rg1 {[%clk 0:00:31]}  Bxe4 {[%clk 0:01:52]} 29. Qd8+ {[%clk 0:00:27]}  Kh7 {[%clk 0:01:50]} 30. Bxe4+ {[%clk 0:00:26]}  g6 {[%clk 0:01:48]} 31. Qd7+ {[%clk 0:00:24]}  Kg8 {[%clk 0:01:47]} 32. Bd5+ {[%clk 0:00:24]}  Kh8 {[%clk 0:01:47]} 33. Qe8+ {[%clk 0:00:23]}  Kg7 {[%clk 0:01:47]} 34. Qg8+ {[%clk 0:00:24]}  Kf6 {[%clk 0:01:48]} 35. Qf7+ {[%clk 0:00:24]}  Kg5 {[%clk 0:01:48]} 36. h4+ {[%clk 0:00:22]}  Kg4 {[%clk 0:01:48]} 37. Qxg6+ {[%clk 0:00:22]}  Kh3 {[%clk 0:01:48]} 38. Be6+ {[%clk 0:00:22]} 1-0


[Site "https://www.chess.com"]